Cogmind - Beta 10.2 @@@ ROGUE MODE // 2021.11.28 @ 17:49:58 Player: TheSlyFawkes Result: Destroyed by S-27 Virus with Autogun Performance ------------- Evolutions (4) 2000 Regions Visited (6) 1200 Robots Destroyed (30) 150 Value Destroyed (720) 720 Prototype IDs (6) 120 Alien Tech Used (0) 0 Bonus (0) 0 TOTAL SCORE: 4190 Bonus ------- None Cogmind --------- Core Integrity 0/850 Matter 201/300 Energy 100/100 System Corruption 2% Temperature Cool (0) Movement Core (50) Location -6/Factory Parts ------- > --- POWER (3) -------- (None) > --- PROPULSION (4) --- (None) > --- UTILITY (5) ------ Enhanced Optical Array Advanced Signal Interpreter > --- WEAPON (3) ------- (None) > --- INVENTORY (4) ---- Improved Cryofiber Web Improved Cooling System System Backup Module Missile Launcher Peak State ------------ > --- POWER ------------ Backup Power I Light Nuclear Core F-cell Engine > --- PROPULSION ------- VTOL Module VTOL Module VTOL Module Cesium-ion Thruster > --- UTILITY ---------- Enhanced Optical Array Advanced Signal Interpreter Improved ECM Suite > --- WEAPON ----------- Improved Assault Rifle Minigun > --- INVENTORY -------- Improved Cryofiber Web Improved Cooling System System Backup Module Missile Launcher [Rating: 36] Favorites ----------- Power Ion Engine Engine Ion Engine Power Core Light Nuclear Core Propulsion Light Treads Treads Light Treads Hover Unit Backup Propulsion III Flight Unit VTOL Module Utility Small Storage Unit Device ECM Suite Storage Small Storage Unit Processor Signal Interpreter Weapon Light Assault Rifle Energy Gun Medium Laser Ballistic Gun Light Assault Rifle Launcher Grenade Launcher Piercing Weapon Makeshift Spear Build | -11 -10 -9 -9 -8 -7 -6 ------- Run | Scr Mat Mat Min Mat Fac Fac Slots Evolved 8 | . . 2 . 2 2 2 Power 2 | . . . . 1 . 1 Propulsion 2 | . . . . 1 1 . Utility 3 | . . 1 . . 1 1 Weapon 1 | . . 1 . . . . Parts Attached 48 | 6 13 1 4 7 12 5 Power 11 | 1 3 . 1 . 3 3 Engine 9 | 1 3 . 1 . 2 2 Core 2 | . . . . . 1 1 Reactor . | . . . . . . . Propulsion 14 | 2 3 . 2 . 5 2 Treads 4 | 2 2 . . . . . Leg . | . . . . . . . Wheel . | . . . . . . . Hover 1 | . 1 . . . . . Flight 9 | . . . 2 . 5 2 Utility 8 | 1 1 1 . 3 2 . Device 4 | . . 1 . 2 1 . Storage 1 | 1 . . . . . . Processor 3 | . 1 . . 1 1 . Hackware . | . . . . . . . Protection . | . . . . . . . Artifact . | . . . . . . . Weapon 15 | 2 6 . 1 4 2 . Energy Gun 2 | 2 . . . . . . Energy Cannon . | . . . . . . . Ballistic Gun 8 | . 5 . 1 1 1 . Ballistic Cannon . | . . . . . . . Launcher 4 | . 1 . . 2 1 . Special Weapon . | . . . . . . . Impact Weapon . | . . . . . . . Slashing Weapon . | . . . . . . . Piercing Weapon 1 | . . . . 1 . . Special Melee Weapon . | . . . . . . . Unidentified Prototypes 4 | . . . 1 . 2 1 Parts Lost 17 | . 5 . . . 3 9 Power 3 | . . . . . 1 2 Propulsion 5 | . 1 . . . . 4 Utility 2 | . . . . . 1 1 Weapon 7 | . 4 . . . 1 2 Highest Loss Streak 9 | . 3 . . . 1 9 Average Slot Usage (%) 84 | . 92 88 77 57 77 65 Engine 12 | . 13 11 11 9 13 6 Treads 13 | . 23 . . . . . Hover 2 | . 3 22 . . . . Flight 9 | . . . 22 18 24 23 Device 4 | . . 11 11 11 13 5 Storage 8 | . 14 11 . . . . Processor 10 | . 9 11 11 9 12 13 Energy Gun 4 | . 6 . . . 2 . Ballistic Gun 11 | . 12 22 22 7 9 11 Launcher 4 | . 6 . . 2 . . Naked Turns . | . . . . . . . Heaviest Build 21 | 13 13 14 8 10 15 21 Greatest Support 40 | 40 40 15 10 10 16 21 Greatest Overweight (x) 2 | 2 1 . . . . . Average Overweight (x) . | . . . . . . . Largest Inventory Capacity 6 | 6 6 6 6 4 4 4 Average Capacity 5 | 4 6 6 4 4 4 4 Most Carried 6 | 4 6 6 6 4 4 4 Average Carried 4 | 2 4 5 4 3 3 3 Final Capacity 6 | 6 6 6 4 4 4 4 Final Carried 6 | 2 6 6 4 4 4 4 Class Distribution -------------------- 77% | Mutant 22% | Sprinter Dominant Class ---------------- Mutant | -10/Materials Mutant | -9/Materials Mutant | -9/Mines Mutant | -8/Materials Sprinter | -7/Factory Sprinter | -6/Factory Resources | -11 -10 -9 -9 -8 -7 -6 ----------- Run | Scr Mat Mat Min Mat Fac Fac Matter Collected 834 | 218 447 . 44 . 125 . Remotely . | . . . . . . . Salvage Created 908 | . 783 . . . 125 . Parts 52 | . 47 . . . 5 . Haulers Intercepted . | . . . . . . . Recyclers Shooed . | . . . . . . . Parts Field Recycled . | . . . . . . . Retrieved Matter . | . . . . . . . Parts Self-Destructed . | . . . . . . . Prevented . | . . . . . . . Kills | -11 -10 -9 -9 -8 -7 -6 ------- Run | Scr Mat Mat Min Mat Fac Fac Combat Hostiles Destroyed 19 | . 19 . . . . . Guns 14 | . 14 . . . . . AOE 5 | . 5 . . . . . Classes Destroyed 7 | . 7 . . . . . Worker 3 | . 1 . . . 2 . Builder 1 | . 1 . . . . . Recycler 3 | . 2 . . . 1 . Operator 2 | . 2 . . . . . Watcher 2 | . 2 . . . . . Swarmer 3 | . 3 . . . . . Grunt 16 | . 16 . . . . . Best Kill Streak 4 | . 4 . . . 2 . Combat Bots Only 3 | . 3 . . . . . Max Kills in Single Turn 3 | . 3 . . . 1 . Gunslinging . | . . . . . . . Exploded 2 | . 2 . . . . . Melee . | . . . . . . . Uniques/NPCs Destroyed . | . . . . . . . Combat | -11 -10 -9 -9 -8 -7 -6 -------- Run | Scr Mat Mat Min Mat Fac Fac Damage Taken 2841 | . 1003 170 58 96 319 1195 Core 1239 | . 232 54 16 35 52 850 Absorbed by Shields . | . . . . . . . Core Remaining (%) 74 | 100 7 . 82 93 92 . Volleys Fired 127 | . 118 . . . 7 2 Largest 2 | . 2 . . . 1 2 Hottest 90 | . 90 . . . 25 48 Shots Fired 150 | . 139 . . . 7 4 Gun 132 | . 121 . . . 7 4 Cannon . | . . . . . . . Launcher 18 | . 18 . . . . . Special . | . . . . . . . Kinetic 113 | . 102 . . . 7 4 Thermal 12 | . 12 . . . . . Explosive 18 | . 18 . . . . . Electromagnetic 7 | . 7 . . . . . Robot Hit Streak 15 | . 15 . . . 3 1 Robot Miss Streak 4 | . 4 . . . 1 2 Penetration Max . | . . . . . . . Secondary Targets 1 | . 1 . . . . . Max Gunslinging Chain 1 | . 1 . . . . . Shots Hit Robots 93 | . 87 . . . 5 1 Core Hits 64 | . 60 . . . 3 1 Critical Hits . | . . . . . . . Critical Kills . | . . . . . . . Critical Parts Destroyed . | . . . . . . . Melee Attacks . | . . . . . . . Impact . | . . . . . . . Slashing . | . . . . . . . Piercing . | . . . . . . . Sneak Attacks . | . . . . . . . Combat Hostiles . | . . . . . . . Follow-up Attacks . | . . . . . . . Damage Inflicted 1714 | . 1610 . . . 89 15 Guns 859 | . 756 . . . 89 14 Cannons . | . . . . . . . Explosions 848 | . 848 . . . . . Melee . | . . . . . . . Ramming 7 | . 6 . . . . 1 Kinetic 720 | . 617 . . . 89 14 Thermal 75 | . 75 . . . . . Explosive 848 | . 848 . . . . . Electromagnetic 64 | . 64 . . . . . Impact . | . . . . . . . Slashing . | . . . . . . . Piercing . | . . . . . . . Highest Corruption 2 | . . . . . 1 2 Average Corruption 1 | . . . . . 1 2 Corruption Purged . | . . . . . . . Effects 1 | . . . . . 1 . Energy Discharges 1 | . . . . . 1 . Overload Shots . | . . . . . . . Overflow Damage 14 | . 14 . . . . . Projectiles . | . . . . . . . Explosions 14 | . 14 . . . . . Melee . | . . . . . . . Knockbacks . | . . . . . . . Impact . | . . . . . . . Kinetic . | . . . . . . . Secondary . | . . . . . . . Self-Inflicted Damage 41 | . 41 . . . . . Shots 3 | . 3 . . . . . Rammed 3 | . 2 . . . . 1 Targets Rammed 3 | . 2 . . . . 1 Kicked . | . . . . . . . Crushed . | . . . . . . . Highest Temperature 286 | . 286 . . . 2 6 Average Temperature 65 | . 68 . . . 2 5 Received Heat Transfer 720 | . 432 54 . 27 63 144 Effects 2 | . 2 . . . . . Interference 2 | . 2 . . . . . Siege Activations . | . . . . . . . Robots Corrupted . | . . . . . . . Combat Hostiles . | . . . . . . . Parts Fried . | . . . . . . . Impact Corruptions . | . . . . . . . Robots Melted . | . . . . . . . Combat Hostiles . | . . . . . . . Parts Melted 1 | . 1 . . . . . Heat Transferred 222 | . 222 . . . . . Parts Sabotaged . | . . . . . . . Parts Stolen . | . . . . . . . Parts Stripped . | . . . . . . . Power Chain Reactions . | . . . . . . . Missiles Intercepted . | . . . . . . . Alert | -11 -10 -9 -9 -8 -7 -6 ------- Run | Scr Mat Mat Min Mat Fac Fac Peak Influence 328 | . 248 140 69 131 328 220 Initial 160 | . . 65 54 26 59 160 Average 137 | . 141 77 54 68 159 178 Maximum Alert Level 1 | . 1 . . . 1 1 Low Security (%) 75 | 100 67 100 100 100 77 90 Level 1 24 | . 32 . . . 22 9 Level 2 . | . . . . . . . Level 3 . | . . . . . . . Level 4 . | . . . . . . . Level 5 . | . . . . . . . High Security . | . . . . . . . Max Security . | . . . . . . . Squads Dispatched 10 | . 5 . . 1 4 . Investigation 6 | . 2 . . 1 3 . Extermination 1 | . . . . . 1 . Reinforcement 3 | . 3 . . . . . Assault . | . . . . . . . Garrison . | . . . . . . . Intercept . | . . . . . . . Construction Impeded . | . . . . . . . Haulers Reinforced . | . . . . . . . Stealth | -11 -10 -9 -9 -8 -7 -6 --------- Run | Scr Mat Mat Min Mat Fac Fac Distress Signals 8 | . 4 1 . 2 . 1 Communications Jammed . | . . . . . . . Distress Signals . | . . . . . . . Times Spotted 99 | . 40 8 2 16 26 7 Peak Tracking Total 9 | . 5 7 2 8 8 9 Tactical Retreats 16 | . 3 2 . 2 8 1 Traps | -11 -10 -9 -9 -8 -7 -6 ------- Run | Scr Mat Mat Min Mat Fac Fac Traps Triggered 6 | . 3 . . 1 2 . Indirectly . | . . . . . . . Trap Hack Attempts . | . . . . . . . Triggered . | . . . . . . . Disarmed 4 | . 4 . . . . . Reprogrammed . | . . . . . . . Reused . | . . . . . . . Traps Extracted . | . . . . . . . Installed . | . . . . . . . Triggered . | . . . . . . . Machines | -11 -10 -9 -9 -8 -7 -6 ---------- Run | Scr Mat Mat Min Mat Fac Fac Machines Disabled 3 | . 2 . . . 1 . Max in Single Turn 1 | . 1 . . . 1 . Machines Sabotaged . | . . . . . . . Garrisons Compromised . | . . . . . . . Overloaded Fab Kills . | . . . . . . . Fab Network Shutdowns . | . . . . . . . Hacking | -11 -10 -9 -9 -8 -7 -6 --------- Run | Scr Mat Mat Min Mat Fac Fac Machines Accessed 15 | . 6 . . . 6 3 Terminals 8 | . 4 . . . 3 1 Fabricators . | . . . . . . . Repair Stations 2 | . 1 . . . 1 . Recycling Units 3 | . 1 . . . 1 1 Scanalyzers 2 | . . . . . 1 1 Garrison Access . | . . . . . . . Total Hacks 43 | . 17 . . . 17 9 Successful 26 | . 12 . . . 11 3 Failed 17 | . 5 . . . 6 6 Catastrophic 1 | . . . . . . 1 Database Lockouts . | . . . . . . . Manual 4 | . . . . . . 4 Terminals 26 | . 15 . . . 6 5 Fabricators . | . . . . . . . Repair Stations 4 | . 1 . . . 3 . Recycling Units 6 | . 1 . . . 3 2 Scanalyzers 7 | . . . . . 5 2 Garrison Access . | . . . . . . . Terminal Hacks 15 | . 10 . . . 3 2 Record 1 | . 1 . . . . . Robot Analysis 1 | . 1 . . . . . Prototype ID Bank 1 | . . . . . 1 . Branch Access Points 1 | . 1 . . . . . Emergency Access Points 3 | . 1 . . . 2 . Terminal Index 1 | . 1 . . . . . Alert Level 3 | . 1 . . . . 2 Locate Traps 2 | . 2 . . . . . Disarm Traps 1 | . 1 . . . . . Zone Layout 1 | . 1 . . . . . Fabricator Hacks . | . . . . . . . Repair Station Hacks 4 | . 1 . . . 3 . Scan Component 1 | . . . . . 1 . Repair 1 | . . . . . 1 . Refit 2 | . 1 . . . 1 . Recycling Unit Hacks 4 | . 1 . . . 2 1 Report Inventory 2 | . . . . . 1 1 Retrieve Components 2 | . 1 . . . 1 . Scanalyzer 3 | . . . . . 3 . Insert Component 1 | . . . . . 1 . Analyze 2 | . . . . . 2 . Garrison Access Hacks . | . . . . . . . Unauthorized Hacks . | . . . . . . . Terminals . | . . . . . . . Fabricators . | . . . . . . . Repair Stations . | . . . . . . . Recycling Units . | . . . . . . . Scanalyzers . | . . . . . . . Garrison Access . | . . . . . . . Data Cores Recovered 1 | . 1 . . . . . Used 1 | . 1 . . . . . Hacking Detections 11 | . 4 . . . 5 2 Full Trace Events 2 | . 1 . . . 1 . Feedback Events . | . . . . . . . Feedback Blocked . | . . . . . . . Robot Schematics Acquired . | . . . . . . . Robots Built . | . . . . . . . Matter . | . . . . . . . Time . | . . . . . . . Total Robot Build Rating . | . . . . . . . Part Schematics Acquired 1 | . . . . . 1 . Parts Built . | . . . . . . . Matter . | . . . . . . . Time . | . . . . . . . Total Part Build Rating . | . . . . . . . Parts Repaired 1 | . . . . . 1 . Time 26 | . . . . . 26 . Parts Recycled . | . . . . . . . Recycled Matter . | . . . . . . . Retrieved Matter . | . . . . . . . Retrieved Components 13 | . 10 . . . 3 . Parts Scanalyzed 1 | . . . . . 1 . Part Schematics Acquired 1 | . . . . . 1 . Parts Damaged 1 | . . . . . 1 . Bothacking | -11 -10 -9 -9 -8 -7 -6 ------------ Run | Scr Mat Mat Min Mat Fac Fac Used RIF Installer . | . . . . . . . Robots Hacked . | . . . . . . . Non-combat . | . . . . . . . Combat . | . . . . . . . Robot Hacks Applied . | . . . . . . . Relay Couplers Released . | . . . . . . . Robots Rewired . | . . . . . . . Allies Hacked . | . . . . . . . Hacks Repelled . | . . . . . . . Allies | -11 -10 -9 -9 -8 -7 -6 -------- Run | Scr Mat Mat Min Mat Fac Fac Total Allies . | . . . . . . . Largest Group . | . . . . . . . Highest-Rated Group . | . . . . . . . Highest-Rated Ally . | . . . . . . . Total Orders . | . . . . . . . Ally Attacks . | . . . . . . . Total Damage . | . . . . . . . Kills . | . . . . . . . Allies Corrupted . | . . . . . . . Allies Melted . | . . . . . . . Intel | -11 -10 -9 -9 -8 -7 -6 ------- Run | Scr Mat Mat Min Mat Fac Fac Robot Analysis Total 1 | . 1 . . . . . Derelict Logs Recovered . | . . . . . . . Drone Launches . | . . . . . . . Drone Recoveries . | . . . . . . . Exploration | -11 -10 -9 -9 -8 -7 -6 ------------- Run | Scr Mat Mat Min Mat Fac Fac Turns Passed 2915 | 67 1631 82 62 166 683 224 Spaces Moved 3793 | 48 990 121 157 403 1574 500 Core 62 | 23 . . . . . 39 Treads 725 | 25 700 . . . . . Legs . | . . . . . . . Wheels . | . . . . . . . Hover 411 | . 290 121 . . . . Flight 2595 | . . . 157 403 1574 461 Fastest Speed 31 | 50 66 66 34 34 32 31 Average Speed 61 | 115 133 66 34 34 32 33 Slowest Speed 180 | 160 180 66 34 34 37 50 Overloaded Moves . | . . . . . . . Propulsion Burnouts . | . . . . . . . Robots Hopped 17 | . . . 6 . 9 2 Cave-ins Triggered . | . . . . . . . Exploration Rate (%) 32 | 3 95 18 18 40 35 15 Regions Visited 6 Branch Regions 1 Pre-discovered Areas . | . . . . . . . Known Exits Taken 5 | . 1 1 1 1 1 . Unknown Exits Taken 1 | 1 . . . . . . Scrap Searched . | . . . . . . . Spaces Dug . | . . . . . . . Terrain Destroyed 119 | . 119 . . . . . Melee . | . . . . . . . Projectile . | . . . . . . . AOE 119 | . 119 . . . . . Terrain Rammed . | . . . . . . . Walls Destroyed . | . . . . . . . Machines Disabled . | . . . . . . . Actions | -11 -10 -9 -9 -8 -7 -6 --------- Run | Scr Mat Mat Min Mat Fac Fac Total 4226 | 58 1178 122 159 432 1729 548 Wait 216 | . 33 . . 11 134 38 Move 3755 | 47 989 120 145 402 1556 496 Hop 15 | . . . 5 . 8 2 Pick Up 29 | 5 16 1 1 2 3 1 Fast Attach 21 | 3 1 . . 7 7 3 Attach 17 | 3 7 1 1 . 3 2 Detach 3 | . . . . 1 1 1 Swap 10 | . 5 . 3 . 2 . Drop 30 | . 7 . 4 9 8 2 Fire 127 | . 118 . . . 7 2 Melee . | . . . . . . . Ram 1 | . . . . . . 1 Kick . | . . . . . . . Crush 2 | . 2 . . . . . Escape Stasis . | . . . . . . . Rewire . | . . . . . . . Trap . | . . . . . . . Miscellaneous . | . . . . . . . Route ------- -11/Scrapyard -10/Materials (discovered 5 exits: *Mat x3 / *Min x2) -9/Materials -9/Mines -8/Materials -7/Factory -6/Factory (discovered 1 exit: [*Fac]) History --------- Turn | Location | Event 3 | -11/Scrapyard | Discovered new exit (range 15) 68 | -11/Scrapyard | Entered Materials 316 | -10/Materials | Build established: Mutant 457 | -10/Materials | Discovered new exit (range 13) 542 | -10/Materials | Discovered new exit (range 15) 542 | -10/Materials | Identified exit to Mines 592 | -10/Materials | Identified exit to Materials 968 | -10/Materials | Core integrity fell below 50% 1105 | -10/Materials | Discovered exit to Materials (range 16) 1407 | -10/Materials | Core integrity fell below 20% 1424 | -10/Materials | Lost 3 parts (1n2w) 1513 | -10/Materials | Discovered exit to Materials (range 8) 1699 | -10/Materials | Entered another Materials area 1699 | -9/Materials | Evolved 2 slots: Utility x1, Weapon x1 1767 | -9/Materials | Discovered new exit (range 10) 1772 | -9/Materials | Identified exit to Mines 1781 | -9/Materials | Entered Mines 1793 | -9/Mines | A weapon hastily lodged in a ceiling crevice suddenly fell to the ground 1799 | -9/Mines | Discovered new exit (range 8) 1801 | -9/Mines | Identified exit to Materials 1808 | -9/Mines | Met a Derelict bent on vengeance 1823 | -9/Mines | Assembled infested the area 1843 | -9/Mines | Entered Materials 1843 | -8/Materials | Evolved 2 slots: Power x1, Propulsion x1 1934 | -8/Materials | Discovered new exit (range 16) 1940 | -8/Materials | Identified exit to Factory 2009 | -8/Materials | Entered Factory 2009 | -7/Factory | Evolved 2 slots: Propulsion x1, Utility x1 2154 | -7/Factory | Repaired Flight Unit 2481 | -7/Factory | Build established: Sprinter 2684 | -7/Factory | Discovered new exit (range 17) 2689 | -7/Factory | Identified exit to Factory 2692 | -7/Factory | Entered another Factory area 2692 | -6/Factory | Evolved 2 slots: Power x1, Utility x1 2776 | -6/Factory | Discovered new exit (range 2) 2906 | -6/Factory | Core integrity fell below 50% 2913 | -6/Factory | Core integrity fell below 20% 2916 | -6/Factory | Destroyed by S-27 Virus with Autogun Last Messages --------------- Cmb. Gravmag System (44%) Hvy. Phase Cannon (39%) EXIT=FOUND K-01 Serf cleans the Power Conduit. Connecting with Terminal... >>Alert(Check) Current Alert Level: Low Security >>Alert(Check) Current Alert Level: Low Security W-25 Informer sends out distress signal. VTOL Module destroyed. Imp. Assault Rifle destroyed. Minigun destroyed. Backup Power I destroyed. VTOL Module destroyed. Lgt. Nuclear Core destroyed. Cesium-ion Thruster destroyed. Imp. ECM Suite destroyed. Slammed into S-27 Virus. Destabilizing: System corrupted (+2). Map ----- +----------------------------------------------------+ | # ] | | ########## ########### | | ########+##### ########## #?????????? | | ^ #??#= T + # # #?????????? | | #??# # # "" # #?????????? | | #### #??# "" "" =# # "" ! # #?????????? | | ???#?#??# "" "" # # """ # #######+### | | ????????# """ """ # # """ # | | ????????# """ """ # + """ # | | ????????# """ """ # # # | | ????????# # # =# #########+####### | | ????????########### ##########+####????????????? | | ??????????????????# ## #????????????? | | ??????????????????# ## """ """ #????????????? | | ??????????????????# ## """ """ #????????????? | | ?????????????????## ## """ """ #????????????? | | ???????########### # ! #????????????? | | ???????# # """ """ #????????????? | | ???????+ + """ """ #????????????? | | ???????# ! # """ """ #????????????? | | ???????###+####+## # #????????????? | | ????????# ??### ### #????????????? | | ????????# """ ### ### #????????????? | | ????????# """"" / / ] ! #????????????? | | ????????# """"" ###+################????????????? | | ????????# ??# s@ Y #?????????????????? | | ????????# ????# sss ##?????????????????? | | ????????#! ??????# =* #??????????????????? | | ????????#????????# "T" ** #??????????????????? | | ?????????????????# """ #??????????????????? | | ?????????????????##############??????????????????? | | | | | | | | | | | | | | | | | | | | | | | | | | | | | | | | | | | | | | | +----------------------------------------------------+ Best States ------------- Heat Dissipation 37 Energy Generation 23 Energy Capacity 500 Matter Stores 300 Matter Capacity 300 Sight Range 22 Terrain Scan Density 10 ECM Strength 1 Evasion (%) 69 Recoil Reduction 2 Item Schematics ----------------- Enh. Nuclear Core | -7/Factory | Scanalyzed Robot Schematics ------------------ None Fabricated ------------ Nothing Alien Tech Used ----------------- None Achievements -------------- Close Call Challenges ------------ None Game ------ Seed ColdPotentialBeam Manual? 0 Play Time 00:58:51 Cumulative 17.1 hours Start 2021.11.28 @ 16:43:11 End 2021.11.28 @ 17:49:58 Sessions 1 Manual Loads 0 Difficulty Rogue Special Mode None Game No. 24 Rogue 23 Adventurer 1 Explorer 0 Win Type - Total 0 Types 0/0/0/0/0/0/0/0/0 Lore% 19 Gallery% 17 Achievement% 21 Wizard Run 0 Options --------- ASCII 0 Keyboard 0 Movement Mouse Keybinds 0 Fullscreen 1 Font 18/SmallcapsGlow Map View 76x50 Tactical HUD 0 Map Filters NONE Filters NONE Steam 1 RUN: 051510c8-4bd0-49aa-a305-8aeb61be13ca